Cogmind - Beta 12 @@@ ROGUE MODE // 2023.04.25 @ 19:06:28 Player: Mr Goldstein Result: Self-destructed Performance ------------- Evolutions (4) 2000 Regions Visited (10) 2000 Robots Destroyed (4) 20 Value Destroyed (31) 31 Prototype IDs (0) 0 Alien Tech Used (0) 0 Bonus (795) 795 TOTAL SCORE: 4846 Bonus ------- Pacifist 470 Follower Combat Kills 25 Met Data Miner 300 Cogmind --------- Core Integrity 294/850 Matter 300/300 Energy 100/100 System Corruption 10% Temperature Cool (0) Movement Core (50) Location -6/Factory Parts ------- > --- POWER (1) -------- (None) > --- PROPULSION (7) --- (None) > --- UTILITY (5) ------ Improved Terrain Scan Processor > --- WEAPON (2) ------- (None) > --- INVENTORY (5) ---- Light Nuclear Core Grenade Launcher Heavy Rocket Launcher Heavy Rocket Launcher Makeshift Hammer Peak State ------------ > --- POWER ------------ Light Deuterium Engine > --- PROPULSION ------- Xenon Bombardment Thruster > --- UTILITY ---------- Advanced Weight Redist. System Improved Terrain Scan Processor System Shield > --- WEAPON ----------- Plasma Flamer Maul > --- INVENTORY -------- Light Nuclear Core Grenade Launcher Heavy Rocket Launcher Heavy Rocket Launcher Makeshift Hammer [Rating: 24] Favorites ----------- Power Light Deuterium Engine Engine Light Deuterium Engine Propulsion Light Treads Treads Light Treads Flight Unit Xenon Bombardment Thruster Utility Improved Terrain Scan Processor Device Advanced Weight Redist. System Processor Improved Terrain Scan Processor Hackware System Shield Weapon Maul Launcher Heavy Rocket Launcher Special Weapon Plasma Flamer Impact Weapon Maul Build | -11 -10 -10 -9 -8 -7 -7 -7 -7 -6 -6 ------- Run | Jun Mat Min Mat Mat Fac Low Low Dat Pro Fac Slots Evolved 8 | . . . 2 2 2 . . . . 2 Power . | . . . . . . . . . . . Propulsion 5 | . . . 1 1 2 . . . . 1 Utility 3 | . . . 1 1 . . . . . 1 Weapon . | . . . . . . . . . . . Parts Attached 15 | 2 . . . 4 3 . 4 1 . 1 Power 1 | . . . . . . . 1 . . . Engine 1 | . . . . . . . 1 . . . Core . | . . . . . . . . . . . Reactor . | . . . . . . . . . . . Propulsion 5 | 2 . . . 1 1 . . . . 1 Treads 3 | 2 . . . . . . . . . 1 Leg . | . . . . . . . . . . . Wheel . | . . . . . . . . . . . Hover . | . . . . . . . . . . . Flight 2 | . . . . 1 1 . . . . . Utility 3 | . . . . 1 1 . 1 . . . Device 1 | . . . . . . . 1 . . . Storage . | . . . . . . . . . . . Processor 1 | . . . . 1 . . . . . . Hackware 1 | . . . . . 1 . . . . . Protection . | . . . . . . . . . . . Artifact . | . . . . . . . . . . . Weapon 6 | . . . . 2 1 . 2 1 . . Energy Gun . | . . . . . . . . . . . Energy Cannon . | . . . . . . . . . . . Ballistic Gun . | . . . . . . . . . . . Ballistic Cannon . | . . . . . . . . . . . Launcher 3 | . . . . 2 . . 1 . . . Special Weapon 1 | . . . . . . . 1 . . . Impact Weapon 2 | . . . . . 1 . . 1 . . Slashing Weapon . | . . . . . . . . . . . Piercing Weapon . | . . . . . . . . . . . Special Melee Weapon . | . . . . . . . . . . . Unidentified Prototypes . | . . . . . . . . . . . Parts Lost 8 | . . . . 2 1 . 1 2 . 2 Power 1 | . . . . . . . . 1 . . Propulsion 5 | . . . . 2 1 . . 1 . 1 Utility 2 | . . . . . . . 1 . . 1 Weapon . | . . . . . . . . . . . Highest Loss Streak 2 | . . . . 2 1 . 1 2 . 1 To Critical Strikes . | . . . . . . . . . . . Average Slot Usage (%) 25 | . 28 28 22 22 19 30 45 27 15 11 Engine 1 | . . . . . . . 6 5 . . Treads 5 | . 28 28 22 10 . . . . . 1 Flight 3 | . . . . 2 3 7 7 5 . . Device 1 | . . . . . . . 6 . . . Processor 5 | . . . . 7 7 7 7 7 7 6 Hackware 4 | . . . . . 7 7 7 7 7 2 Impact Weapon 2 | . . . . . . 7 7 . . . Naked Turns . | . . . . . . . . . . . Heaviest Build 15 | . . . . . 3 3 15 5 . . Greatest Support 15 | 3 3 3 3 4 6 6 15 6 3 3 Greatest Overweight (x) . | . . . . . . . . . . . Average Overweight (x) . | . . . . . . . . . . . Largest Inventory Capacity 5 | 5 5 5 5 5 5 5 5 5 5 5 Average Capacity 5 | 5 5 5 5 5 5 5 5 5 5 5 Most Carried 5 | 1 . 1 2 4 5 4 5 5 5 5 Average Carried 3 | . . . 1 2 4 4 4 4 5 5 Final Capacity 5 | 5 5 5 5 5 5 5 5 5 5 5 Final Carried 5 | . . 1 2 4 4 4 5 5 5 5 Class Distribution -------------------- 100% | Mutant Dominant Class ---------------- Mutant | -10/Materials Mutant | -10/Mines Mutant | -9/Materials Mutant | -8/Materials Mutant | -7/Factory Mutant | -7/Lower Caves Mutant | -7/Lower Caves Mutant | -7/Data Miner Mutant | -6/Proximity Caves Mutant | -6/Factory Resources | -11 -10 -10 -9 -8 -7 -7 -7 -7 -6 -6 ----------- Run | Jun Mat Min Mat Mat Fac Low Low Dat Pro Fac Matter Collected 351 | 178 . . 15 2 . . 41 . 21 94 Remotely . | . . . . . . . . . . . Salvage Created 15 | . . . . 2 . . . . . 13 Parts 5 | . . . . 3 . . . . . 2 Haulers Intercepted . | . . . . . . . . . . . Recyclers Shooed . | . . . . . . . . . . . Parts Field Recycled . | . . . . . . . . . . . Retrieved Matter . | . . . . . . . . . . . Parts Self-Destructed . | . . . . . . . . . . . Prevented . | . . . . . . . . . . . Kills | -11 -10 -10 -9 -8 -7 -7 -7 -7 -6 -6 ------- Run | Jun Mat Min Mat Mat Fac Low Low Dat Pro Fac Combat Hostiles Destroyed 3 | . . . . 3 . . . . . . AOE 3 | . . . . 3 . . . . . . Classes Destroyed 2 | . . . . 1 . . . . . 1 Worker 1 | . . . . . . . . . . 1 Swarmer 3 | . . . . 3 . . . . . . Best Kill Streak 3 | . . . . 3 . . . . . 1 Combat Bots Only 3 | . . . . 3 . . . . . . Max Kills in Single Turn 3 | . . . . 3 . . . . . 1 Gunslinging . | . . . . . . . . . . . Exploded 3 | . . . . 3 . . . . . . Melee . | . . . . . . . . . . . Uniques/NPCs Destroyed . | . . . . . . . . . . . Combat | -11 -10 -10 -9 -8 -7 -7 -7 -7 -6 -6 -------- Run | Jun Mat Min Mat Mat Fac Low Low Dat Pro Fac Damage Taken 2026 | . 111 . 186 213 230 31 45 286 136 788 Core 1364 | . 44 . 52 102 193 31 30 220 136 556 Absorbed by Shields . | . . . . . . . . . . . Core Remaining (%) 72 | 100 . 82 87 81 . . . . 12 . Volleys Fired 4 | . . . . 1 . . 3 . . . Largest 2 | . . . . 2 . . 1 . . . Hottest 60 | . . . . 60 . . 39 . . . Shots Fired 5 | . . . . 2 . . 3 . . . Gun . | . . . . . . . . . . . Cannon . | . . . . . . . . . . . Launcher 5 | . . . . 2 . . 3 . . . Special . | . . . . . . . . . . . Kinetic . | . . . . . . . . . . . Thermal . | . . . . . . . . . . . Explosive 5 | . . . . 2 . . 3 . . . Electromagnetic . | . . . . . . . . . . . Robot Hit Streak . | . . . . . . . . . . . Robot Miss Streak . | . . . . . . . . . . . Penetration Max . | . . . . . . . . . . . Secondary Targets . | . . . . . . . . . . . Shots Hit Robots 1 | . . . . . . . . 1 . . Core Hits 8 | . . . . 6 . . . . . 2 Critical Kills . | . . . . . . . . . . . Critical Parts Destroyed . | . . . . . . . . . . . Critical Strikes . | . . . . . . . . . . . Melee Attacks 4 | . . . . . 3 . . 1 . . Impact 4 | . . . . . 3 . . 1 . . Slashing . | . . . . . . . . . . . Piercing . | . . . . . . . . . . . Sneak Attacks 1 | . . . . . . . . 1 . . Combat Hostiles . | . . . . . . . . . . . Follow-up Attacks . | . . . . . . . . . . . Damage Inflicted 301 | . . . 13 147 . . . 84 . 57 Guns . | . . . . . . . . . . . Cannons . | . . . . . . . . . . . Explosions 121 | . . . . 121 . . . . . . Melee 84 | . . . . . . . . 84 . . Ramming 96 | . . . 13 26 . . . . . 57 Kinetic . | . . . . . . . . . . . Thermal . | . . . . . . . . . . . Explosive 121 | . . . . 121 . . . . . . Electromagnetic . | . . . . . . . . . . . Impact 84 | . . . . . . . . 84 . . Slashing . | . . . . . . . . . . . Piercing . | . . . . . . . . . . . Highest Corruption 10 | . . . . . 3 3 3 3 3 10 Average Corruption 3 | . . . . . 1 3 3 3 3 7 Corruption Purged . | . . . . . . . . . . . Corruption Blocked . | . . . . . . . . . . . Effects 10 | . . . . . . 3 . 2 1 4 Message Errors 2 | . . . . . . . . 1 . 1 Matter Fused 3 | . . . . . . 2 . . . 1 Heat Flow Errors 3 | . . . . . . . . 1 1 1 Energy Discharges 1 | . . . . . . . . . . 1 Data Loss (minor) 1 | . . . . . . 1 . . . . Overload Shots . | . . . . . . . . . . . Overflow Damage 77 | . . . . 3 . . . 74 . . Projectiles . | . . . . . . . . . . . Explosions 3 | . . . . 3 . . . . . . Melee 74 | . . . . . . . . 74 . . Knockbacks 1 | . . . . . . . . 1 . . Impact 1 | . . . . . . . . 1 . . Kinetic . | . . . . . . . . . . . Secondary . | . . . . . . . . . . . Self-Inflicted Damage 44 | . . . 6 12 . . . . . 26 Shots . | . . . . . . . . . . . Rammed 20 | . . . 5 3 . . . . . 12 Targets Rammed 20 | . . . 5 3 . . . . . 12 Kicked . | . . . . . . . . . . . Crushed . | . . . . . . . . . . . Highest Temperature 243 | . . . . . . . . 234 243 180 Average Temperature 118 | . . . . . . . . 128 115 106 Received Heat Transfer 360 | . 54 . 105 63 36 9 9 . 27 57 Siege Activations . | . . . . . . . . . . . Robots Corrupted . | . . . . . . . . . . . Combat Hostiles . | . . . . . . . . . . . Parts Fried . | . . . . . . . . . . . Impact Corruptions 1 | . . . . . . . . 1 . . Robots Melted . | . . . . . . . . . . . Combat Hostiles . | . . . . . . . . . . . Parts Melted . | . . . . . . . . . . . Heat Transferred . | . . . . . . . . . . . Parts Sabotaged . | . . . . . . . . . . . Parts Stolen . | . . . . . . . . . . . Parts Stripped . | . . . . . . . . . . . Power Chain Reactions . | . . . . . . . . . . . Missiles Intercepted . | . . . . . . . . . . . Alert | -11 -10 -10 -9 -8 -7 -7 -7 -7 -6 -6 ------- Run | Jun Mat Min Mat Mat Fac Low Low Dat Pro Fac Peak Influence 275 | . . . 75 182 164 . . . . 275 Initial 82 | . . . . 31 82 . . . . 37 Average 90 | . . . 39 88 114 . . . . 149 Maximum Alert Level 1 | . . . . . . . . . . 1 Low Security (%) 92 | 100 100 100 100 100 100 . . . . 76 Level 1 7 | . . . . . . . . . . 23 Level 2 . | . . . . . . . . . . . Level 3 . | . . . . . . . . . . . Level 4 . | . . . . . . . . . . . Level 5 . | . . . . . . . . . . . High Security . | . . . . . . . . . . . Max Security . | . . . . . . . . . . . Squads Dispatched 8 | . 1 . . 2 . . . . . 5 Investigation 2 | . . . . . . . . . . 2 Extermination . | . . . . . . . . . . . Reinforcement 6 | . 1 . . 2 . . . . . 3 Assault . | . . . . . . . . . . . Garrison . | . . . . . . . . . . . Intercept . | . . . . . . . . . . . Searches Triggered . | . . . . . . . . . . . Construction Impeded . | . . . . . . . . . . . Haulers Reinforced 1 | . . . . . . . . . . 1 Active Scanning Responses . | . . . . . . . . . . . Cargo Convoy Interrupts . | . . . . . . . . . . . Stealth | -11 -10 -10 -9 -8 -7 -7 -7 -7 -6 -6 --------- Run | Jun Mat Min Mat Mat Fac Low Low Dat Pro Fac Distress Signals 4 | . . . 3 1 . . . . . . Communications Jammed . | . . . . . . . . . . . Distress Signals . | . . . . . . . . . . . Times Spotted 75 | . 7 . 13 12 7 4 4 4 9 15 Peak Tracking Total 11 | . 8 . 11 8 6 4 3 4 5 6 Tactical Retreats 12 | . . . 1 . 1 2 2 . 1 5 Traps | -11 -10 -10 -9 -8 -7 -7 -7 -7 -6 -6 ------- Run | Jun Mat Min Mat Mat Fac Low Low Dat Pro Fac Traps Triggered 2 | . . . . . 1 . . . 1 . Indirectly . | . . . . . . . . . . . Trap Hack Attempts . | . . . . . . . . . . . Triggered . | . . . . . . . . . . . Disarmed . | . . . . . . . . . . . Reprogrammed . | . . . . . . . . . . . Reused . | . . . . . . . . . . . Traps Extracted . | . . . . . . . . . . . Installed . | . . . . . . . . . . . Triggered 1 | . . . . . . 1 . . . . Machines | -11 -10 -10 -9 -8 -7 -7 -7 -7 -6 -6 ---------- Run | Jun Mat Min Mat Mat Fac Low Low Dat Pro Fac Machines Disabled 1 | . . . . . . . . 1 . . Max in Single Turn 1 | . . . . . . . . 1 . . Machines Repaired . | . . . . . . . . . . . Machines Sabotaged . | . . . . . . . . . . . Overloaded Fab Kills . | . . . . . . . . . . . Hacking | -11 -10 -10 -9 -8 -7 -7 -7 -7 -6 -6 --------- Run | Jun Mat Min Mat Mat Fac Low Low Dat Pro Fac Machines Accessed 9 | . . . 1 . 1 . 1 2 . 4 Terminals 5 | . . . 1 . 1 . . . . 3 Fabricators 1 | . . . . . . . . . . 1 Repair Stations . | . . . . . . . . . . . Recycling Units . | . . . . . . . . . . . Scanalyzers . | . . . . . . . . . . . Garrison Access . | . . . . . . . . . . . Total Hacks 26 | . . . 2 . 5 . 1 7 . 11 Successful 12 | . . . 1 . 1 . 1 7 . 2 Failed 14 | . . . 1 . 4 . . . . 9 Catastrophic 3 | . . . . . 1 . . . . 2 Database Lockouts . | . . . . . . . . . . . Manual 6 | . . . 2 . . . . . . 4 Terminals 14 | . . . 2 . 5 . . . . 7 Fabricators 4 | . . . . . . . . . . 4 Repair Stations . | . . . . . . . . . . . Recycling Units . | . . . . . . . . . . . Scanalyzers . | . . . . . . . . . . . Garrison Access . | . . . . . . . . . . . Terminal Hacks 12 | . . . 1 . 1 . 1 7 . 2 Record 1 | . . . . . . . . 1 . . Robot Schematic 6 | . . . . . . . . 6 . . Open Door 1 | . . . . . . . 1 . . . Level Access Points 1 | . . . 1 . . . . . . . Branch Access Points 1 | . . . . . 1 . . . . . Zone Layout 2 | . . . . . . . . . . 2 Fabricator Hacks . | . . . . . . . . . . . Repair Station Hacks . | . . . . . . . . . . . Recycling Unit Hacks . | . . . . . . . . . . . Scanalyzer . | . . . . . . . . . . . Garrison Access Hacks . | . . . . . . . . . . . Unauthorized Hacks . | . . . . . . . . . . . Terminals . | . . . . . . . . . . . Fabricators . | . . . . . . . . . . . Repair Stations . | . . . . . . . . . . . Recycling Units . | . . . . . . . . . . . Scanalyzers . | . . . . . . . . . . . Garrison Access . | . . . . . . . . . . . Data Cores Recovered 1 | . . . 1 . . . . . . . Used 1 | . . . 1 . . . . . . . Hacking Detections 5 | . . . . . 1 . . . . 4 Full Trace Events 2 | . . . . . . . . . . 2 Feedback Events 1 | . . . . . . . . . . 1 Corruption 1 | . . . . . . . . . . 1 Feedback Blocked . | . . . . . . . . . . . Robot Schematics Acquired 6 | . . . . . . . . 6 . . Robots Built . | . . . . . . . . . . . Authchips . | . . . . . . . . . . . Time . | . . . . . . . . . . . Total Robot Build Rating . | . . . . . . . . . . . Part Schematics Acquired . | . . . . . . . . . . . Parts Built . | . . . . . . . . . . . Authchips . | . . . . . . . . . . . Time . | . . . . . . . . . . . Total Part Build Rating . | . . . . . . . . . . . Parts Repaired . | . . . . . . . . . . . Time . | . . . . . . . . . . . Parts Recycled . | . . . . . . . . . . . Recycled Matter . | . . . . . . . . . . . Retrieved Matter . | . . . . . . . . . . . Retrieved Components . | . . . . . . . . . . . Parts Scanalyzed . | . . . . . . . . . . . Part Schematics Acquired . | . . . . . . . . . . . Parts Damaged . | . . . . . . . . . . . Bothacking | -11 -10 -10 -9 -8 -7 -7 -7 -7 -6 -6 ------------ Run | Jun Mat Min Mat Mat Fac Low Low Dat Pro Fac Used RIF Installer . | . . . . . . . . . . . Robots Hacked . | . . . . . . . . . . . Non-combat . | . . . . . . . . . . . Combat . | . . . . . . . . . . . Robot Hacks Applied . | . . . . . . . . . . . Relay Couplers Released . | . . . . . . . . . . . Fabnet Peak Effective % . | . . . . . . . . . . . Robots Rewired . | . . . . . . . . . . . Allies Hacked . | . . . . . . . . . . . Hacks Repelled . | . . . . . . . . . . . Allies | -11 -10 -10 -9 -8 -7 -7 -7 -7 -6 -6 -------- Run | Jun Mat Min Mat Mat Fac Low Low Dat Pro Fac Total Allies 1 | . . 1 . . . . . . . . Largest Group 1 | . . . 1 . . . . . . . Highest-Rated Group 31 | . . . 31 . . . . . . . Highest-Rated Ally 31 | . . . 31 . . . . . . . Total Orders . | . . . . . . . . . . . Ally Attacks 7 | . . . 7 . . . . . . . Total Damage 122 | . . . 122 . . . . . . . Kills 2 | . . . 2 . . . . . . . Allies Corrupted . | . . . . . . . . . . . Allies Melted . | . . . . . . . . . . . Intel | -11 -10 -10 -9 -8 -7 -7 -7 -7 -6 -6 ------- Run | Jun Mat Min Mat Mat Fac Low Low Dat Pro Fac Robot Analysis Total . | . . . . . . . . . . . Derelict Logs Recovered 5 | . . 1 . . . . 2 . 2 . Drone Launches . | . . . . . . . . . . . Drone Recoveries . | . . . . . . . . . . . Exploration | -11 -10 -10 -9 -8 -7 -7 -7 -7 -6 -6 ------------- Run | Jun Mat Min Mat Mat Fac Low Low Dat Pro Fac Turns Passed 1101 | 16 26 85 51 102 131 131 204 43 125 187 Spaces Moved 2270 | 26 52 167 90 186 256 327 474 97 250 345 Core 1200 | 26 52 167 90 133 134 . . 3 250 345 Treads . | . . . . . . . . . . . Legs . | . . . . . . . . . . . Wheels . | . . . . . . . . . . . Hover . | . . . . . . . . . . . Flight 1070 | . . . . 53 122 327 474 94 . . Fastest Speed 40 | 50 50 50 50 40 40 40 40 40 50 50 Average Speed 45 | 50 50 50 50 47 45 40 40 40 50 50 Slowest Speed 50 | 50 50 50 50 50 50 40 40 50 50 50 Overloaded Moves . | . . . . . . . . . . . Propulsion Burnouts . | . . . . . . . . . . . Robots Hopped 4 | . . . . 1 . . . 3 . . Cave-ins Triggered . | . . . . . . . . . . . Exploration Rate (%) 36 | 3 21 50 18 30 11 53 62 78 56 18 Regions Visited 10 Branch Regions 5 Pre-discovered Areas 2 | . . 1 . . . . . 1 . . Known Exits Taken 2 | . . . 1 . 1 . . . . . Unknown Exits Taken 8 | 1 1 1 . 1 . 1 1 1 1 . Scrap Searched 3 | . . . . . . . 2 . 1 . Spaces Dug 66 | . . . . 9 2 . 55 . . . Terrain Destroyed 66 | . . . . 9 2 . 55 . . . Melee 2 | . . . . . 2 . . . . . Projectile . | . . . . . . . . . . . AOE 64 | . . . . 9 . . 55 . . . Terrain Rammed . | . . . . . . . . . . . Walls Destroyed . | . . . . . . . . . . . Machines Disabled . | . . . . . . . . . . . Actions | -11 -10 -10 -9 -8 -7 -7 -7 -7 -6 -6 --------- Run | Jun Mat Min Mat Mat Fac Low Low Dat Pro Fac Total 2315 | 28 51 167 95 196 264 326 485 96 249 358 Wait . | . . . . . . . . . . . Move 2253 | 25 51 166 89 183 255 326 473 91 249 345 Hop 3 | . . . . 1 . . . 2 . . Pick Up 9 | 1 . 1 1 2 2 . 2 . . . Fast Attach 8 | 1 . . . 2 2 . 2 . . 1 Attach 7 | 1 . . . 2 1 . 2 1 . . Detach 4 | . . . . 2 . . 1 1 . . Swap . | . . . . . . . . . . . Drop 3 | . . . . . 1 . 2 . . . Fire 4 | . . . . 1 . . 3 . . . Melee 4 | . . . . . 3 . . 1 . . Ram 20 | . . . 5 3 . . . . . 12 Kick . | . . . . . . . . . . . Crush . | . . . . . . . . . . . Escape Stasis . | . . . . . . . . . . . Rewire . | . . . . . . . . . . . Trap . | . . . . . . . . . . . Miscellaneous . | . . . . . . . . . . . Route ------- -11/Junkyard -10/Materials -10/Mines -9/Materials (discovered 3 exits: *Mat x3) -8/Materials -7/Factory (discovered 2 exits: *Low x2) -7/Lower Caves -7/Lower Caves -7/Data Miner -6/Proximity Caves -6/Factory (discovered 2 exits: *Fac x2) History --------- Turn | Location | Event 6 | -11/Junkyard | Discovered new exit (range 15) 17 | -11/Junkyard | Entered Materials 36 | -10/Materials | Discovered new exit (range 12) 43 | -10/Materials | Entered Mines 63 | -10/Mines | Learned location of Mines (-8) 117 | -10/Mines | Discovered new exit (range 11) 124 | -10/Mines | Received a Mining Laser from a helpful Derelict 128 | -10/Mines | Entered Materials 128 | -9/Materials | Accompanied by 1 ally 128 | -9/Materials | Evolved 2 slots: Propulsion x1, Utility x1 135 | -9/Materials | Identified exit to Materials 179 | -9/Materials | Entered another Materials area 179 | -8/Materials | Evolved 2 slots: Propulsion x1, Utility x1 273 | -8/Materials | Discovered new exit (range 16) 281 | -8/Materials | Entered Factory 281 | -7/Factory | Evolved 2 slots: Propulsion x2 312 | -7/Factory | Identified exit to Lower Caves 325 | -7/Factory | Build established: Mutant 412 | -7/Factory | Entered Lower Caves 539 | -7/Lower Caves | Discovered new exit (range 10) 543 | -7/Lower Caves | Entered another Lower Caves area 559 | -7/Lower Caves | Learned location of 1 exit from Factory 572 | -7/Lower Caves | Learned 4 Factory zone layouts 744 | -7/Lower Caves | Discovered new exit (range 9) 747 | -7/Lower Caves | Entered Data Miner 747 | -7/Data Miner | Discovered new exit (range 7) 755 | -7/Data Miner | Met Data Miner 766 | -7/Data Miner | Learned location of Section 7 (-3) 770 | -7/Data Miner | Received God Mode back door access code from Data Miner 775 | -7/Data Miner | Data Conduit disabled 786 | -7/Data Miner | Core integrity fell below 50% 790 | -7/Data Miner | Entered Proximity Caves 805 | -6/Proximity Caves | Learned Factory garrison access intel 852 | -6/Proximity Caves | Learned Factory stockpile data 876 | -6/Proximity Caves | Attracted the attention of an 0b10 checkpoint 876 | -6/Proximity Caves | Core integrity fell below 20% 911 | -6/Proximity Caves | Discovered new exit (range 7) 915 | -6/Proximity Caves | Entered Factory 915 | -6/Factory | Evolved 2 slots: Propulsion x1, Utility x1 916 | -6/Factory | Identified exit to Factory 919 | -6/Factory | Loaded intel: 4 garrison access locations 950 | -6/Factory | Discovered exit to Factory (range 16) 1036 | -6/Factory | System corruption reached 10% 1050 | -6/Factory | Core integrity fell below 50% 1102 | -6/Factory | Self-destructed Last Messages --------------- 01035_ Connecting with Terminal... Feedback: System corruption (+1%). 01035_ ALERT: Suspicious activity at Terminal F001. Dispatching Investigation squad. 01041_ System corrupted: Matter fused (-6). 01046_ Slammed into G-50 Soldier. 01048_ Imp. Medium Treads destroyed. 01048_ Slammed into G-50 Soldier. 01049_ Slammed into A-15 Conveyor. 01049_ Destabilizing: Core damaged (-25). 01049_ A-15 Conveyor calls for reinforcements. 01049_ ALERT: Hostile activity reported, dispatching reinforcements to area. 01058_ O-24 Administrator: "IFF HANDSHAKE FAILED. SECURING TERMINAL." 01064_ O-24 Administrator uses terminal to summon reinforcements. 01064_ ALERT: Hostiles spotted, dispatching reinforcements to Terminal F008. 01064_ O-24 Administrator locks terminal. 01072_ Slammed into S-27 Virus. 01102_ Connecting with Terminal... Map ----- +----------------------------------------------------+ | | | | | | | | | | | | | | | | | | | ?????????????????????????????????????????????????? | | ?????????????????????????????????????????????????? | | ???????????????????????????????????????#?????????? | | ??????????????????????????????????????? ?????????? | | ??????????????????????????????????????? ??????#?? | | ???????????????????????????????????????" ?????]#?? | | ??????????????????????????????????????"" ???? #?? | | ??????????????????????????????????# ??"" """ #?? | | ??????????????????????????????????# #?? | | ??????????????????????????????????#! """ """ #?? | | ??????????????????????????????????# """ """ #?? | | ???????????????????????########???# """ """ #?? | | ???????????????????????# #???? #?? | | ???????????????????????#" """ #?????? ! ???? | | ???????????????????????#" """ #???????? ?????? | | ???????????????????????#" """ ###########+######## | | ???????????????????????#T@ # | | ???????????????????????#" """ # | | ???????????????????????#" """ + | | ???????????????????????#" """ # | | ???????????????????????# # | | ???????????????????????# """ #####+#####+####+### | | ???????????????????????# """ #??????????????????? | | ???????????????????????# """ #??????????????????? | | ???????????????????????# o #??????????????????? | | ???????????????????????# * #??????????????????? | | ???????????????????????####?##???????????????????? | | ?????????????????????????????????????????????????? | | ?????????????????????????????????????????????????? | | ?????????????????????????????????????????????????? | | ?????????????????????????????????????????????????? | | ?????????????????????????????????????????????????? | | ?????????????????????????????????????????????????? | | ?????????????????????????????????????????????????? | | ?????????????????????????????????????????????????? | | ?????????????????????????????????????????????????? | | ?????????????????????????????????????????????????? | | ?????????????????????????????????????????????????? | | ?????????????????????????????????????????????????? | | ???????????????????????????????????????###+####### | | ????????????????????????????????????? | +----------------------------------------------------+ Best States ------------- Heat Dissipation 37 Energy Generation 14 Energy Capacity 140 Matter Stores 300 Matter Capacity 300 Sight Range 16 Terrain Scan Density 110 Additional Mass Support 9 Evasion (%) 62 Defensive Hacking 10 Item Schematics ----------------- None Robot Schematics ------------------ M-22 Extractor | -7/Data Miner | Free B-48 Gladiator | -7/Data Miner | Free L-41 Fighter | -7/Data Miner | Free M-14 Sweeper | -7/Data Miner | Free G-50 Soldier | -7/Data Miner | Free H-66 Slayer | -7/Data Miner | Free Fabricated ------------ Nothing Alien Tech Used ----------------- None Achievements -------------- None Challenges ------------ None Game ------ Seed ModifiedVisualCapacitor Manual? 0 Play Time 00:15:49 Cumulative 143.9 hours Start 2023.04.25 @ 18:50:46 End 2023.04.25 @ 19:06:28 Sessions 1 Manual Loads 0 Difficulty Rogue Special Mode None Game No. 419 Rogue 419 Adventurer 0 Explorer 0 Win Type - Total 6 Types 5/0/0/1/0/0/0/0/0 Lore% 63 Gallery% 69 Achievement% 60 Wizard Run 0 Options --------- ASCII 0 Keyboard 0 Movement Numpad Keybinds 0 Fullscreen 1 Font 16/SmallcapsGlow Map View 75x55 Tactical HUD 1 Map Filters NONE Filters NONE Steam 1 RUN: f1636078-ecaf-4764-985b-8420aba8482f